[Event "Kupreichik Memorial Rapid 2019"]
[Site "Minsk"]
[Date "2019.08.16"]
[Round "7.7"]
[White "Vaganian, Rafael A"]
[Black "Agapov, Sergey"]
[Result "1-0"]
[ECO "A45"]
[WhiteElo "2514"]
[BlackElo "2265"]
[Annotator "ChessBase"]
[PlyCount "109"]
[EventDate "2019.08.15"]
[EventType "swiss"]
[EventCountry "BLR"]
[SourceTitle "playchess.com"]
[Source "ChessBase"]
[SourceQuality "1"]
[TimeControl "900+10"]

1. d4 {[%emt 0:00:00]} Nf6 {[%emt 0:00:00]} 2. Bg5 {[%emt 0:00:00]} e6 {[%emt 0:00:32]} 3. e4 {[%emt 0:00:00]} h6 {[%emt 0:00:01]} 4. Bxf6 {[%emt 0:00:00]} Qxf6 {[%emt 0:00:01]} 5. Nc3 {[%emt 0:00:01]} c5 {[%emt 0:01:09]} 6. d5 {[%emt 0:00:08]} a6 {[%emt 0:00:07]} 7. a4 {[%emt 0:00:06]} e5 {[%emt 0:00:07]} 8. Nf3 {[%emt 0:00:11]} d6 {[%emt 0:00:01]} 9. Nd2 {[%emt 0:00:01]} Qd8 {[%emt 0:00:11]} 10. Be2 {[%emt 0:00:17]} Be7 {[%emt 0:00:04]} 11. Bg4 {[%emt 0:00:17]} O-O {[%emt 0:00:22]} 12. Bxc8 {[%emt 0:00:03]} Qxc8 {[%emt 0:00:01]} 13. Nc4 {[%emt 0:00:02]} Nd7 {[%emt 0:00:16]} 14. a5 {[%emt 0:00:05]} Qc7 {[%emt 0:00:18]} 15. Na4 {[%emt 0:00:11]} f5 {[%emt 0:00:03]} 16. exf5 {[%emt 0:00:53]} Rxf5 {[%emt 0:00:05]} 17. Qg4 {[%emt 0:00:38]} Raf8 {[%emt 0:00:21]} 18. O-O {[%emt 0:00:03]} Rf4 {[%emt 0:00:45]} 19. Qe6+ {[%emt 0:00:14]} R8f7 {[%emt 0:00:01]} 20. Nab6 {[%emt 0:00:01]} Nf8 {[%emt 0:00:03]} 21. Qh3 {[%emt 0:00:02]} Rh4 {[%emt 0:01:57]} 22. Qd3 {[%emt 0:01:16]} Rhf4 {[%emt 0:03:07]} 23. Rae1 {[%emt 0:00:04]} Nh7 {[%emt 0:00:06]} 24. g3 {[%emt 0:01:18]} R4f6 {[%emt 0:00:15]} 25. Kg2 {[%emt 0:00:40]} Ng5 {[%emt 0:00:58]} 26. Nd2 {[%emt 0:00:02]} Rf5 {[%emt 0:00:59]} 27. Re3 {[%emt 0:00:55]} Nh7 {[%emt 0:00:33]} 28. Rf3 Rxf3 {[%emt 0:00:09]} 29. Nxf3 {[%emt 0:01:08]} Bd8 {[%emt 0:00:48]} 30. Nd2 {[%emt 0:00:18]} Qe7 {[%emt 0:00:37]} 31. Nbc4 {[%emt 0:00:01]} Bc7 {[%emt 0:02:43]} 32. Ne4 {[%emt 0:00:06]} Qd8 {[%emt 0:00:01]} 33. Ra1 {[%emt 0:00:56]} Nf6 {[%emt 0:00:08]} 34. Ra3 {[%emt 0:00:32]} Qf8 {[%emt 0:01:01]} 35. f3 {[%emt 0:00:55]} Qd8 {[%emt 0:00:47]} 36. Nxf6+ {[%emt 0:00:25]} Qxf6 {[%emt 0:00:20]} 37. Qe4 {[%emt 0:00:06]} h5 {[%emt 0:00:24]} 38. Rb3 {[%emt 0:01:03]} Bd8 {[%emt 0:00:01]} 39. Re3 {[%emt 0:00:43]} Qh6 {[%emt 0:00:29]} 40. Re2 {[%emt 0:01:37]} h4 {[%emt 0:00:12]} 41. Qg4 {[%emt 0:00:11]} Qc1 {[%emt 0:00:58]} 42. Nxd6 {[%emt 0:00:19]} Rf8 {[%emt 0:00:15]} 43. gxh4 {[%emt 0:00:41]} Qxb2 {[%emt 0:00:09]} 44. Qe6+ {[%emt 0:00:10]} Kh7 {[%emt 0:00:03]} 45. Qxe5 {[%emt 0:00:22]} Qb1 {[%emt 0:00:05]} 46. Nf5 {[%emt 0:00:25]} Bf6 {[%emt 0:00:02]} 47. Qe4 {[%emt 0:00:01]} Kh8 {[%emt 0:00:03]} 48. c4 {[%emt 0:00:20]} Qc1 {[%emt 0:00:13]} 49. d6 {[%emt 0:00:07]} Qc3 {[%emt 0:00:05]} 50. Qd5 {[%emt 0:00:12]} Bd4 {[%emt 0:00:08]} 51. d7 {[%emt 0:00:05]} Qd3 {[%emt 0:00:02]} 52. Re8 {[%emt 0:00:17]} Kh7 {[%emt 0:00:48]} 53. Rxf8 {[%emt 0:00:43]} Qe2+ {[%emt 0:00:01]} 54. Kh3 {[%emt 0:00:01]} Qf1+ {[%emt 0:00:04]} 55. Kg4 {[%emt 0:00:01]} 1-0

[Event "Kupreichik Memorial Rapid 2019"]
[Site "Minsk"]
[Date "2019.08.16"]
[Round "7.8"]
[White "Maryasin, Boris"]
[Black "Teterev, Vitaly"]
[Result "0-1"]
[ECO "B40"]
[WhiteElo "2302"]
[BlackElo "2474"]
[Annotator "ChessBase"]
[PlyCount "56"]
[EventDate "2019.08.15"]
[EventType "swiss"]
[EventCountry "BLR"]
[SourceTitle "playchess.com"]
[Source "ChessBase"]
[SourceQuality "1"]
[TimeControl "900+10"]

1. e4 {[%emt 0:00:00]} c5 {[%emt 0:00:00]} 2. Nf3 {[%emt 0:00:00]} e6 {[%emt 0:00:00]} 3. b3 {[%emt 0:00:00]} b6 {[%emt 0:00:01]} 4. d4 {[%emt 0:00:12]} cxd4 {[%emt 0:00:04]} 5. Nxd4 {[%emt 0:00:01]} Bb7 {[%emt 0:00:02]} 6. Bd3 {[%emt 0:00:13]} Bc5 {[%emt 0:02:15]} 7. Bb2 {[%emt 0:00:56]} Qf6 {[%emt 0:00:27]} 8. c3 {[%emt 0:00:06]} Nc6 {[%emt 0:01:11]} 9. Nf3 {[%emt 0:01:25]} Ne5 {[%emt 0:00:42]} 10. b4 {[%emt 0:00:14]} Bxb4 {[%emt 0:00:57]} 11. Nxe5 {[%emt 0:00:24]} Qxe5 {[%emt 0:00:03]} 12. f4 {[%emt 0:00:30]} Qf6 {[%emt 0:00:04]} 13. O-O {[%emt 0:01:56]} Bc5+ {[%emt 0:00:48]} 14. Kh1 {[%emt 0:00:01]} Qh4 {[%emt 0:02:29]} 15. Nd2 {[%emt 0:02:39]} Nf6 {[%emt 0:00:21]} 16. g3 {[%emt 0:01:02]} Qh3 {[%emt 0:00:28]} 17. Qe2 {[%emt 0:01:12]} h5 {[%emt 0:02:29]} 18. Qg2 {[%emt 0:01:33]} Qxg2+ {[%emt 0:00:36]} 19. Kxg2 {[%emt 0:00:00]} Ng4 {[%emt 0:00:03]} 20. Rfe1 {[%emt 0:00:40]} h4 {[%emt 0:01:27]} 21. Nf1 {[%emt 0:01:57]} f5 {[%emt 0:00:56]} 22. Re2 {[%emt 0:00:34]} Kf7 {[%emt 0:01:05]} 23. c4 {[%emt 0:00:11]} hxg3 {[%emt 0:00:10]} 24. Kxg3 {[%emt 0:00:09]} Nf6 {[%emt 0:00:24]} 25. Bxf6 {[%emt 0:00:10]} gxf6 {[%emt 0:00:02]} 26. h3 {[%emt 0:00:23]} Rag8+ 27. Kh2 Bg1+ {[%emt 0:00:32]} 28. Kh1 {[%emt 0:00:03]} fxe4 {[%emt 0:00:02]} 0-1

[Event "Kupreichik Memorial Rapid 2019"]
[Site "Minsk"]
[Date "2019.08.16"]
[Round "7.9"]
[White "Dydyshko, Viacheslav"]
[Black "Kochetkov, German"]
[Result "1/2-1/2"]
[ECO "A81"]
[WhiteElo "2506"]
[BlackElo "2277"]
[Annotator "ChessBase"]
[PlyCount "108"]
[EventDate "2019.08.15"]
[EventType "swiss"]
[EventCountry "BLR"]
[SourceTitle "playchess.com"]
[Source "ChessBase"]
[SourceQuality "1"]
[TimeControl "900+10"]

1. d4 {[%emt 0:00:00]} f5 {[%emt 0:00:00]} 2. g3 {[%emt 0:00:12]} Nf6 {[%emt 0:00:00]} 3. Bg2 {[%emt 0:00:02]} g6 {[%emt 0:00:00]} 4. c4 {[%emt 0:00:14]} Bg7 {[%emt 0:00:00]} 5. Nc3 {[%emt 0:00:01]} O-O {[%emt 0:00:01]} 6. Nh3 {[%emt 0:00:16]} d6 {[%emt 0:00:22]} 7. d5 {[%emt 0:00:06]} c5 {[%emt 0:01:42]} 8. Nf4 {[%emt 0:00:21]} Na6 {[%emt 0:00:19]} 9. O-O {[%emt 0:02:12]} Nc7 {[%emt 0:00:04]} 10. h4 {[%emt 0:00:54]} a6 {[%emt 0:00:04]} 11. a4 {[%emt 0:00:06]} Rb8 {[%emt 0:00:01]} 12. a5 {[%emt 0:00:12]} b5 {[%emt 0:00:04]} 13. axb6 {[%emt 0:00:02]} Rxb6 {[%emt 0:00:01]} 14. Qc2 {[%emt 0:00:18]} Bd7 {[%emt 0:00:26]} 15. Bd2 {[%emt 0:03:30]} Ne4 {[%emt 0:01:25]} 16. Nxe4 {[%emt 0:00:41]} Rxb2 {[%emt 0:00:04]} 17. Qc1 {[%emt 0:00:05]} fxe4 {[%emt 0:00:01]} 18. Bc3 {[%emt 0:00:05]} Rb4 {[%emt 0:04:13]} 19. Bxg7 {[%emt 0:00:38]} Kxg7 {[%emt 0:00:01]} 20. Qc3+ {[%emt 0:00:08]} Rf6 {[%emt 0:01:18]} 21. Bxe4 {[%emt 0:00:04]} e5 {[%emt 0:00:11]} 22. dxe6 {[%emt 0:01:35]} Bxe6 {[%emt 0:00:04]} 23. Nxe6+ {[%emt 0:01:49]} Nxe6 {[%emt 0:00:01]} 24. Rxa6 {[%emt 0:00:10]} Nd4 {[%emt 0:00:03]} 25. Ra7+ {[%emt 0:00:02]} Kh8 {[%emt 0:01:15]} 26. Kg2 {[%emt 0:00:40]} Re6 {[%emt 0:04:09]} 27. f3 {[%emt 0:02:19]} Qf6 {[%emt 0:00:56]} 28. Rf2 {[%emt 0:00:38]} Nf5 {[%emt 0:01:10]} 29. Qxf6+ {[%emt 0:00:51]} Rxf6 {[%emt 0:00:01]} 30. Bxf5 {[%emt 0:00:10]} gxf5 {[%emt 0:00:02]} 31. e3 {[%emt 0:00:09]} Rxc4 {[%emt 0:00:43]} 32. Rb2 {[%emt 0:00:03]} Rg6 {[%emt 0:00:45]} 33. Rb8+ {[%emt 0:00:11]} Rg8 {[%emt 0:00:02]} 34. Rbb7 {[%emt 0:00:01]} Rxh4 {[%emt 0:00:03]} 35. Rf7 {[%emt 0:00:13]} Rh6 {[%emt 0:00:17]} 36. Rxf5 {[%emt 0:00:07]} Rc8 {[%emt 0:00:04]} 37. Rff7 {[%emt 0:00:05]} d5 {[%emt 0:00:36]} 38. Rac7 {[%emt 0:00:15]} Rxc7 {[%emt 0:00:07]} 39. Rxc7 {[%emt 0:00:02]} c4 {[%emt 0:00:00]} 40. f4 {[%emt 0:00:11]} Rd6 {[%emt 0:00:09]} 41. Kf3 {[%emt 0:00:02]} Kg8 {[%emt 0:00:08]} 42. g4 {[%emt 0:00:01]} h6 {[%emt 0:00:01]} 43. f5 {[%emt 0:00:02]} Kf8 {[%emt 0:00:02]} 44. Kf4 {[%emt 0:00:06]} Ke8 {[%emt 0:00:00]} 45. Ke5 {[%emt 0:00:03]} Rd7 {[%emt 0:00:03]} 46. Rc8+ {[%emt 0:00:04]} Kf7 {[%emt 0:00:03]} 47. Kd4 {[%emt 0:00:05]} Kf6 {[%emt 0:00:11]} 48. Rg8 {[%emt 0:00:03]} Rg7 {[%emt 0:00:04]} 49. Rxg7 {[%emt 0:00:36]} Kxg7 {[%emt 0:00:01]} 50. e4 {[%emt 0:00:01]} dxe4 {[%emt 0:00:03]} 51. Kxc4 {[%emt 0:00:01]} Kf6 {[%emt 0:00:08]} 52. Kd4 {[%emt 0:00:01]} h5 {[%emt 0:00:01]} 53. Kxe4 {[%emt 0:00:11]} hxg4 {[%emt 0:00:01]} 54. Kf4 {[%emt 0:00:01]} g3 1/2-1/2

[Event "Kupreichik Memorial Rapid 2019"]
[Site "Minsk"]
[Date "2019.08.16"]
[Round "7.10"]
[White "Pogosian, Manvel"]
[Black "Kuleshov, Konstantin"]
[Result "1-0"]
[ECO "D79"]
[WhiteElo "2383"]
[BlackElo "2076"]
[Annotator "NA"]
[PlyCount "65"]
[EventDate "2019.08.15"]
[EventType "swiss"]
[EventCountry "BLR"]
[SourceTitle "playchess.com"]
[Source "ChessBase"]
[SourceQuality "1"]
[TimeControl "900+10"]

1. d4 {[%emt 0:00:00]} Nf6 {[%emt 0:00:00]} 2. Nf3 {[%emt 0:00:00]} g6 {[%emt 0:00:00]} 3. g3 {[%emt 0:00:00]} Bg7 {[%emt 0:00:00]} 4. Bg2 {[%emt 0:00:00]} O-O {[%emt 0:00:00]} 5. O-O {[%emt 0:00:00]} d5 {[%emt 0:00:00]} 6. c4 {[%emt 0:00:07]} c6 {[%emt 0:00:00]} 7. cxd5 {[%emt 0:00:03]} cxd5 {[%emt 0:00:01]} 8. Ne5 {[%emt 0:00:05]} e6 {[%emt 0:00:58]} 9. Nc3 {[%emt 0:00:03]} Nfd7 {[%emt 0:00:02]} 10. f4 {[%emt 0:00:33]} f5 {[%emt 0:00:15]} 11. Be3 {[%emt 0:00:32]} Nb6 {[%emt 0:00:59]} 12. Rc1 {[%emt 0:00:16]} Bd7 {[%emt 0:00:05]} 13. b3 {[%emt 0:00:21]} Nc6 {[%emt 0:00:03]} 14. Qd2 {[%emt 0:00:14]} Rc8 {[%emt 0:00:08]} 15. Kh1 {[%emt 0:00:21]} Be8 {[%emt 0:00:16]} 16. Bf3 {[%emt 0:00:15]} Nd7 {[%emt 0:00:10]} 17. g4 {[%emt 0:01:19]} Ndxe5 {[%emt 0:00:26]} 18. fxe5 {[%emt 0:00:22]} a6 {[%emt 0:01:12]} 19. gxf5 {[%emt 0:00:33]} gxf5 {[%emt 0:00:04]} 20. Bg5 {[%emt 0:03:44]} Qb6 {[%emt 0:00:02]} 21. Na4 {[%emt 0:00:52]} Qa7 {[%emt 0:00:57]} 22. Nc5 {[%emt 0:00:35]} Bf7 {[%emt 0:00:12]} 23. Rg1 {[%emt 0:01:30]} Kh8 {[%emt 0:00:45]} 24. Bh6 {[%emt 0:00:24]} Rg8 {[%emt 0:02:28]} 25. Rxg7 {[%emt 0:01:10]} Rxg7 {[%emt 0:00:01]} 26. Bxg7+ {[%emt 0:00:01]} Kxg7 {[%emt 0:00:02]} 27. Qg5+ {[%emt 0:00:05]} Kf8 {[%emt 0:00:01]} 28. Qf6 {[%emt 0:01:13]} Re8 {[%emt 0:00:31]} 29. Nd7+ {[%emt 0:00:20]} Kg8 {[%emt 0:00:02]} 30. Rg1+ {[%emt 0:00:01]} Bg6 {[%emt 0:00:01]} 31. Rxg6+ {[%emt 0:00:07]} hxg6 {[%emt 0:00:08]} 32. Qxg6+ {[%emt 0:00:02]} Kh8 {[%emt 0:00:02]} 33. Qxe8+ {[%emt 0:00:04]} 1-0

[Event "Kupreichik Memorial Rapid 2019"]
[Site "Minsk"]
[Date "2019.08.16"]
[Round "7.11"]
[White "Tsaruk, Maksim"]
[Black "Mikhailovsky, Vladimir"]
[Result "1-0"]
[ECO "B00"]
[WhiteElo "2230"]
[BlackElo "2209"]
[Annotator "NA"]
[PlyCount "67"]
[EventDate "2019.08.15"]
[EventType "swiss"]
[EventCountry "BLR"]
[SourceTitle "playchess.com"]
[Source "ChessBase"]
[SourceQuality "1"]
[TimeControl "900+10"]

1. e4 {[%emt 0:00:00]} d6 {[%emt 0:00:02]} 2. d4 {[%emt 0:00:00]} g6 {[%emt 0:00:02]} 3. g3 {[%emt 0:00:22]} Bg7 {[%emt 0:00:02]} 4. Bg2 {[%emt 0:00:01]} Nc6 {[%emt 0:01:03]} 5. Ne2 {[%emt 0:00:56]} h5 {[%emt 0:00:17]} 6. Bg5 {[%emt 0:01:03]} Nf6 {[%emt 0:02:30]} 7. Qd2 {[%emt 0:00:11]} Bg4 {[%emt 0:02:22]} 8. f3 {[%emt 0:02:44]} Bd7 {[%emt 0:00:39]} 9. Nbc3 {[%emt 0:00:03]} a6 {[%emt 0:00:24]} 10. O-O-O {[%emt 0:02:28]} b5 {[%emt 0:00:22]} 11. Rhe1 {[%emt 0:00:06]} b4 {[%emt 0:01:18]} 12. Nd5 {[%emt 0:00:12]} a5 {[%emt 0:00:47]} 13. Kb1 {[%emt 0:05:47]} e6 {[%emt 0:01:43]} 14. Nxf6+ {[%emt 0:01:48]} Bxf6 {[%emt 0:00:02]} 15. Bxf6 {[%emt 0:00:03]} Qxf6 {[%emt 0:00:02]} 16. f4 {[%emt 0:00:36]} Qe7 {[%emt 0:02:50]} 17. d5 {[%emt 0:00:14]} Nd8 {[%emt 0:00:08]} 18. e5 {[%emt 0:00:02]} Ra6 {[%emt 0:00:21]} 19. Nd4 {[%emt 0:00:37]} Kf8 {[%emt 0:01:42]} 20. dxe6 {[%emt 0:00:13]} Bxe6 {[%emt 0:01:00]} 21. f5 {[%emt 0:00:02]} gxf5 {[%emt 0:00:14]} 22. Qf4 {[%emt 0:00:18]} Kg7 {[%emt 0:00:34]} 23. exd6 {[%emt 0:00:06]} Qf6 {[%emt 0:00:10]} 24. dxc7 {[%emt 0:00:04]} a4 {[%emt 0:00:14]} 25. cxd8=Q {[%emt 0:00:13]} Rxd8 {[%emt 0:00:01]} 26. Nxe6+ {[%emt 0:00:08]} Rxe6 {[%emt 0:00:02]} 27. Rf1 {[%emt 0:00:28]} a3 {[%emt 0:00:02]} 28. Qc1 {[%emt 0:00:11]} Rc8 {[%emt 0:00:13]} 29. Bd5 {[%emt 0:00:09]} Re2 {[%emt 0:00:15]} 30. Bb3 {[%emt 0:00:01]} Ra8 {[%emt 0:00:20]} 31. Rd7 {[%emt 0:00:11]} Re7 {[%emt 0:00:18]} 32. Rxe7 Qxe7 33. Rxf5 {[%emt 0:00:06]} f6 {[%emt 0:00:04]} 34. Rxh5 {[%emt 0:00:03]} 1-0

[Event "Kupreichik Memorial Rapid 2019"]
[Site "Minsk"]
[Date "2019.08.16"]
[Round "7.12"]
[White "Veremeichik, Vladimir"]
[Black "Vashchilov, Sergey"]
[Result "1-0"]
[ECO "D37"]
[WhiteElo "2282"]
[BlackElo "2162"]
[Annotator "NA"]
[PlyCount "101"]
[EventDate "2019.08.15"]
[EventType "swiss"]
[EventCountry "BLR"]
[SourceTitle "playchess.com"]
[Source "ChessBase"]
[SourceQuality "1"]
[TimeControl "900+10"]

1. d4 {[%emt 0:00:00]} e6 {[%emt 0:00:00]} 2. c4 {[%emt 0:00:00]} d5 {[%emt 0:00:00]} 3. Nc3 {[%emt 0:00:00]} Nf6 {[%emt 0:00:00]} 4. Nf3 {[%emt 0:00:00]} dxc4 {[%emt 0:00:19]} 5. Qa4+ {[%emt 0:00:12]} c6 {[%emt 0:02:13]} 6. Qxc4 {[%emt 0:00:05]} b5 {[%emt 0:00:21]} 7. Qb3 {[%emt 0:00:05]} a6 {[%emt 0:00:03]} 8. Bg5 {[%emt 0:00:11]} Nbd7 {[%emt 0:00:44]} 9. a4 {[%emt 0:00:18]} Qa5 {[%emt 0:00:32]} 10. Bxf6 {[%emt 0:01:07]} Nxf6 {[%emt 0:00:14]} 11. e3 {[%emt 0:01:39]} Bb4 {[%emt 0:03:13]} 12. Ne5 {[%emt 0:01:04]} Bb7 {[%emt 0:00:57]} 13. Nd3 {[%emt 0:00:43]} c5 {[%emt 0:02:10]} 14. dxc5 {[%emt 0:00:25]} Bxc3+ {[%emt 0:00:45]} 15. Qxc3 {[%emt 0:00:03]} Qxc3+ {[%emt 0:00:05]} 16. bxc3 {[%emt 0:00:01]} O-O {[%emt 0:02:43]} 17. f3 {[%emt 0:01:27]} Nd5 {[%emt 0:00:56]} 18. Kd2 {[%emt 0:00:04]} Rfd8 {[%emt 0:00:01]} 19. Be2 {[%emt 0:00:29]} bxa4 {[%emt 0:01:02]} 20. c4 {[%emt 0:01:48]} Nb4 {[%emt 0:00:35]} 21. Rxa4 {[%emt 0:00:05]} a5 {[%emt 0:00:01]} 22. Rha1 {[%emt 0:00:23]} Nc6 {[%emt 0:00:45]} 23. Kc3 {[%emt 0:00:06]} Ba6 {[%emt 0:00:08]} 24. f4 {[%emt 0:00:17]} Rd7 {[%emt 0:00:45]} 25. Rb1 {[%emt 0:00:06]} Rad8 {[%emt 0:00:11]} 26. Rb6 {[%emt 0:00:07]} Bb7 {[%emt 0:00:11]} 27. Ne1 {[%emt 0:01:20]} Nb4 {[%emt 0:00:14]} 28. Rxa5 {[%emt 0:00:12]} Nc6 {[%emt 0:00:03]} 29. Rab5 {[%emt 0:00:20]} Ba8 {[%emt 0:00:03]} 30. Rb2 {[%emt 0:00:19]} e5 {[%emt 0:00:29]} 31. Bf3 {[%emt 0:00:15]} Rc7 {[%emt 0:00:12]} 32. Bd5 {[%emt 0:00:30]} exf4 {[%emt 0:00:04]} 33. exf4 {[%emt 0:00:02]} Kf8 {[%emt 0:00:16]} 34. Nd3 {[%emt 0:00:01]} Ne7 {[%emt 0:00:01]} 35. Bxa8 {[%emt 0:00:06]} Rxa8 {[%emt 0:00:01]} 36. Rb8+ Rc8 37. Rxc8+ {[%emt 0:00:13]} Rxc8 {[%emt 0:00:02]} 38. Rb7 {[%emt 0:00:03]} Nc6 {[%emt 0:00:17]} 39. g3 {[%emt 0:00:25]} Ke8 {[%emt 0:00:21]} 40. Nb4 {[%emt 0:00:04]} Nd8 {[%emt 0:00:16]} 41. Rb5 {[%emt 0:00:41]} Kd7 {[%emt 0:00:22]} 42. Ra5 {[%emt 0:00:19]} Ke8 {[%emt 0:00:11]} 43. c6 {[%emt 0:00:09]} Nxc6 {[%emt 0:00:11]} 44. Nxc6 {[%emt 0:00:02]} Rxc6 {[%emt 0:00:01]} 45. c5 {[%emt 0:00:01]} Rc7 {[%emt 0:00:12]} 46. Kc4 {[%emt 0:00:02]} Kd7 {[%emt 0:00:07]} 47. Kd5 {[%emt 0:00:01]} Kc8 {[%emt 0:00:12]} 48. c6 {[%emt 0:00:02]} Kd8 {[%emt 0:00:11]} 49. Kd6 {[%emt 0:00:01]} Rc8 {[%emt 0:00:04]} 50. Ra7 {[%emt 0:00:01]} Ke8 {[%emt 0:00:10]} 51. c7 {[%emt 0:00:01]} 1-0

[Event "Kupreichik Memorial Rapid 2019"]
[Site "Minsk"]
[Date "2019.08.16"]
[Round "7.13"]
[White "Pakhomov, Alexey"]
[Black "Lazavik, Denis"]
[Result "1/2-1/2"]
[ECO "D10"]
[WhiteElo "2315"]
[BlackElo "2347"]
[Annotator "NA"]
[PlyCount "106"]
[EventDate "2019.08.15"]
[EventType "swiss"]
[EventCountry "BLR"]
[SourceTitle "playchess.com"]
[Source "ChessBase"]
[SourceQuality "1"]
[TimeControl "900+10"]

1. d4 {[%emt 0:00:00]} d5 {[%emt 0:00:00]} 2. c4 {[%emt 0:00:00]} c6 {[%emt 0:00:00]} 3. cxd5 {[%emt 0:00:14]} cxd5 {[%emt 0:00:00]} 4. Bg5 {[%emt 0:00:01]} Nc6 {[%emt 0:00:04]} 5. Nc3 {[%emt 0:00:01]} f6 {[%emt 0:00:02]} 6. Bh4 {[%emt 0:00:02]} e6 {[%emt 0:00:24]} 7. e3 {[%emt 0:00:09]} g6 {[%emt 0:00:34]} 8. Bd3 {[%emt 0:00:14]} Bg7 {[%emt 0:00:04]} 9. Nge2 {[%emt 0:00:25]} Nge7 {[%emt 0:00:03]} 10. f3 {[%emt 0:03:04]} O-O {[%emt 0:00:15]} 11. O-O {[%emt 0:00:13]} Kh8 {[%emt 0:02:39]} 12. Bf2 {[%emt 0:00:02]} e5 {[%emt 0:00:13]} 13. e4 {[%emt 0:02:16]} dxe4 {[%emt 0:01:11]} 14. Bxe4 {[%emt 0:00:47]} exd4 {[%emt 0:00:09]} 15. Nxd4 {[%emt 0:00:20]} f5 {[%emt 0:01:02]} 16. Nxc6 {[%emt 0:01:16]} Nxc6 {[%emt 0:00:38]} 17. Bxc6 {[%emt 0:03:30]} bxc6 {[%emt 0:00:02]} 18. Qa4 {[%emt 0:00:00]} Be6 {[%emt 0:00:51]} 19. Qxc6 {[%emt 0:00:24]} Qc8 {[%emt 0:00:03]} 20. Qa4 {[%emt 0:00:33]} Qc4 {[%emt 0:00:35]} 21. Qxc4 {[%emt 0:00:47]} Bxc4 {[%emt 0:00:02]} 22. Rfd1 {[%emt 0:00:03]} Rfd8 {[%emt 0:00:45]} 23. Rac1 {[%emt 0:00:34]} Rxd1+ {[%emt 0:01:54]} 24. Rxd1 {[%emt 0:00:11]} Kg8 {[%emt 0:00:16]} 25. Bd4 {[%emt 0:00:21]} Bf8 {[%emt 0:00:01]} 26. Kf2 {[%emt 0:00:10]} a5 {[%emt 0:00:40]} 27. b3 {[%emt 0:00:06]} Bf7 {[%emt 0:00:05]} 28. Be3 {[%emt 0:00:29]} Rc8 {[%emt 0:00:10]} 29. Ne2 {[%emt 0:00:07]} h6 {[%emt 0:01:30]} 30. Rc1 {[%emt 0:00:08]} Ra8 {[%emt 0:00:03]} 31. Nc3 {[%emt 0:00:19]} g5 {[%emt 0:00:28]} 32. g3 {[%emt 0:00:05]} Ba3 {[%emt 0:00:21]} 33. Rd1 {[%emt 0:00:04]} Rc8 {[%emt 0:00:06]} 34. Ne2 {[%emt 0:00:02]} Bb4 {[%emt 0:00:12]} 35. Rc1 {[%emt 0:00:14]} Ra8 {[%emt 0:00:08]} 36. Rc6 {[%emt 0:00:05]} Bf8 {[%emt 0:01:03]} 37. h4 {[%emt 0:00:29]} f4 {[%emt 0:00:51]} 38. gxf4 {[%emt 0:00:04]} gxh4 39. f5 a4 {[%emt 0:00:13]} 40. bxa4 {[%emt 0:00:08]} Bxa2 {[%emt 0:00:06]} 41. Bxh6 {[%emt 0:00:05]} Bxh6 {[%emt 0:00:13]} 42. Rxh6 {[%emt 0:00:01]} Rxa4 {[%emt 0:00:01]} 43. Rg6+ {[%emt 0:00:14]} Kf7 {[%emt 0:00:18]} 44. Rg4 {[%emt 0:00:01]} Ra5 {[%emt 0:00:07]} 45. Nd4 {[%emt 0:00:19]} Bb1 {[%emt 0:00:15]} 46. Rxh4 {[%emt 0:00:25]} Bxf5 {[%emt 0:00:14]} 47. Nxf5 {[%emt 0:00:42]} Rxf5 {[%emt 0:00:01]} 48. f4 {[%emt 0:00:01]} Ra5 {[%emt 0:00:07]} 49. Kf3 {[%emt 0:00:01]} Kg6 {[%emt 0:00:08]} 50. Rh8 {[%emt 0:00:08]} Ra1 {[%emt 0:00:09]} 51. Rf8 {[%emt 0:00:17]} Rf1+ {[%emt 0:00:08]} 52. Kg2 {[%emt 0:00:04]} Ra1 {[%emt 0:00:02]} 53. Kf2 {[%emt 0:00:09]} Ra3 {[%emt 0:00:04]} 1/2-1/2

[Event "Kupreichik Memorial Rapid 2019"]
[Site "Minsk"]
[Date "2019.08.16"]
[Round "7.14"]
[White "Balashov, Yuri S"]
[Black "Oblamski, Vladimir"]
[Result "1-0"]
[ECO "B01"]
[WhiteElo "2474"]
[BlackElo "2088"]
[Annotator "ChessBase"]
[PlyCount "77"]
[EventDate "2019.08.15"]
[EventType "swiss"]
[EventCountry "BLR"]
[SourceTitle "playchess.com"]
[Source "ChessBase"]
[SourceQuality "1"]
[TimeControl "900+10"]

1. e4 {[%emt 0:00:00]} d5 {[%emt 0:00:00]} 2. exd5 {[%emt 0:00:00]} Qxd5 {[%emt 0:00:00]} 3. Nf3 {[%emt 0:00:00]} Nf6 {[%emt 0:00:00]} 4. Be2 {[%emt 0:00:09]} c6 {[%emt 0:00:29]} 5. d4 {[%emt 0:00:14]} Bg4 {[%emt 0:00:27]} 6. O-O {[%emt 0:00:04]} e6 {[%emt 0:00:11]} 7. c4 {[%emt 0:00:05]} Qd8 {[%emt 0:00:02]} 8. Be3 {[%emt 0:00:04]} Be7 {[%emt 0:00:03]} 9. Nc3 {[%emt 0:00:04]} O-O {[%emt 0:00:14]} 10. Ne5 {[%emt 0:00:06]} Bxe2 {[%emt 0:00:11]} 11. Qxe2 {[%emt 0:00:01]} Nbd7 {[%emt 0:00:03]} 12. Rad1 {[%emt 0:00:05]} Qc7 {[%emt 0:00:33]} 13. f4 {[%emt 0:00:04]} Rfd8 {[%emt 0:01:31]} 14. Qf3 {[%emt 0:00:12]} Bb4 {[%emt 0:00:23]} 15. Ne2 {[%emt 0:00:42]} Bf8 {[%emt 0:00:45]} 16. g4 {[%emt 0:00:40]} g6 {[%emt 0:00:47]} 17. Ng3 {[%emt 0:00:20]} Bg7 {[%emt 0:00:43]} 18. g5 {[%emt 0:00:14]} Ne8 {[%emt 0:00:20]} 19. c5 {[%emt 0:00:10]} f5 {[%emt 0:02:36]} 20. Ne2 {[%emt 0:00:47]} Nf8 {[%emt 0:02:12]} 21. Nc3 {[%emt 0:00:41]} Bxe5 {[%emt 0:01:06]} 22. dxe5 {[%emt 0:00:13]} Rxd1 {[%emt 0:00:17]} 23. Rxd1 {[%emt 0:00:03]} Rd8 {[%emt 0:00:04]} 24. Kf2 {[%emt 0:00:29]} Qe7 {[%emt 0:00:39]} 25. b4 {[%emt 0:00:49]} Nc7 {[%emt 0:00:40]} 26. Rd6 {[%emt 0:00:03]} Nd5 {[%emt 0:00:11]} 27. Nxd5 {[%emt 0:00:11]} exd5 {[%emt 0:00:05]} 28. b5 {[%emt 0:00:24]} Ne6 {[%emt 0:01:49]} 29. Qd1 {[%emt 0:00:04]} d4 {[%emt 0:01:16]} 30. Bxd4 {[%emt 0:00:09]} Nxf4 {[%emt 0:00:14]} 31. Qb3+ {[%emt 0:00:03]} Kf8 {[%emt 0:01:07]} 32. Rf6+ {[%emt 0:00:05]} Kg7 {[%emt 0:00:10]} 33. Rf7+ {[%emt 0:01:23]} Qxf7 {[%emt 0:00:12]} 34. e6+ {[%emt 0:00:01]} Rxd4 {[%emt 0:00:08]} 35. exf7 {[%emt 0:00:03]} Rd2+ {[%emt 0:00:40]} 36. Ke1 {[%emt 0:00:07]} Rd5 {[%emt 0:00:13]} 37. bxc6 {[%emt 0:00:17]} bxc6 {[%emt 0:00:08]} 38. f8=Q+ {[%emt 0:00:08]} Kxf8 {[%emt 0:00:01]} 39. Qb8+ {[%emt 0:00:01]} 1-0